Cogmind - Beta 15 *** ADVENTURER MODE // 2025.06.26 @ 19:42:47 Player: FrakkingUsername Result: Self-destructed Performance ------------- Evolutions (2) 1000 Regions Visited (5) 1000 Robots Destroyed (27) 135 Value Destroyed (941) 941 Prototype IDs (29) 580 Alien Tech Used (0) 0 Bonus (385) 385 TOTAL SCORE: 4041 Bonus ------- Follower Combat Kills 85 Aligned with FarCom 300 Cogmind --------- Core Integrity 496/550 Matter 189/300 Energy 160/160 System Corruption 5% Temperature Cool (0) Movement Walking (120) Location -8/Materials Parts ------- > --- POWER (1) -------- Light Nuclear Core > --- PROPULSION (3) --- Aluminum Leg Aluminum Leg Aluminum Leg > --- UTILITY (5) ------ Lightpack 2.0 Medium Armor Plating > --- WEAPON (2) ------- Light Cannon Light Cannon > --- INVENTORY (40) --- Light Nuclear Core Light Nuclear Core Improved Heat Sink Improved Heat Sink Medium Storage Unit Improved Terrain Scanner Improved Utility Shielding Pulse Rifle Advanced EMP Blaster Advanced EMP Blaster Advanced EMP Blaster Advanced EMP Blaster Grenade Launcher Peak State ------------ > --- POWER ------------ Light Ion Engine > --- PROPULSION ------- Aluminum Leg Aluminum Leg > --- UTILITY ---------- Lightpack 2.0 Medium Armor Plating > --- WEAPON ----------- Light Cannon Advanced EMP Blaster > --- INVENTORY -------- Light Nuclear Core Improved Heat Sink Improved Heat Sink Medium Storage Unit Improved Terrain Scanner Pulse Rifle Light Cannon Light Cannon Advanced EMP Blaster Advanced EMP Blaster Advanced EMP Blaster Grenade Launcher [Rating: 43] Favorites ----------- Power Light Ion Engine Engine Light Ion Engine Power Core Light Nuclear Core Propulsion Aluminum Leg Leg Aluminum Leg Wheel Wheel Utility Medium Storage Unit Device Sensor Array Storage Medium Storage Unit Protection Improved Light Armor Plating Weapon Light Cannon Energy Gun EM Pulse Gun Ballistic Gun Light Assault Rifle Ballistic Cannon Light Cannon Launcher Advanced EMP Blaster Build | -11 -10 -10 -10 -9 -8 ------- Run | Yrd Mat Min Exi Min Mat Slots Evolved 4 | . . . . . 4 Power . | . . . . . . Propulsion 1 | . . . . . 1 Utility 3 | . . . . . 3 Weapon . | . . . . . . Parts Attached 27 | 6 7 5 . 5 4 Power 3 | 1 . 2 . . . Engine 2 | 1 . 1 . . . Core 1 | . . 1 . . . Reactor . | . . . . . . Propulsion 7 | 2 2 . . 2 1 Treads . | . . . . . . Leg 5 | . 2 . . 2 1 Wheel 2 | 2 . . . . . Hover . | . . . . . . Flight . | . . . . . . Utility 9 | 1 3 2 . 2 1 Device 3 | . 1 1 . 1 . Storage 3 | 1 1 . . . 1 Processor . | . . . . . . Hackware . | . . . . . . Protection 3 | . 1 1 . 1 . Artifact . | . . . . . . Weapon 8 | 2 2 1 . 1 2 Energy Gun 2 | 2 . . . . . Energy Cannon . | . . . . . . Ballistic Gun 1 | . 1 . . . . Ballistic Cannon 3 | . 1 1 . 1 . Launcher 2 | . . . . . 2 Special Weapon . | . . . . . . Impact Weapon . | . . . . . . Slashing Weapon . | . . . . . . Piercing Weapon . | . . . . . . Special Melee Weapon . | . . . . . . Unidentified Prototypes 2 | . . . . 1 1 Parts Lost 1 | . 1 . . . . Power . | . . . . . . Propulsion . | . . . . . . Utility 1 | . 1 . . . . Weapon . | . . . . . . Highest Loss Streak 1 | . 1 . . . . To Critical Strikes . | . . . . . . Average Backups 8 | 3 8 9 9 8 10 Power 1 | 1 1 1 1 1 . Propulsion 1 | 1 2 2 2 1 . Utility 2 | . 1 2 3 3 4 Weapon 2 | . 3 4 2 2 4 Tool/Special . | . . . . . . Unused Backups 19 | . 4 2 3 . 10 Power 1 | . . . 1 . . Propulsion 1 | . . . . . 1 Utility 6 | . . 2 1 . 3 Weapon 11 | . 4 . 1 . 6 Tool/Special . | . . . . . . Average Slot Usage (%) 96 | . 96 100 100 100 63 Engine 13 | . 14 14 14 14 8 Leg 25 | . 16 28 28 28 18 Wheel 2 | . 11 . . . . Device 1 | . 4 1 . . . Storage 13 | . 14 14 14 14 9 Protection 11 | . 5 12 14 13 9 Energy Gun 4 | . 15 11 . . . Ballistic Cannon 22 | . 11 16 28 28 15 Peak Build Rating 43 | 6 8 11 13 19 43 Average Rating 12 | 3 7 8 11 13 40 On Entrance 8 | . 6 8 11 13 12 Naked Turns . | . . . . . . Heaviest Build 26 | 12 19 22 22 26 24 Greatest Support 30 | 20 20 20 20 20 30 Greatest Overweight (x) 1 | 1 . 1 1 1 1 Average Overweight (x) . | . . . 1 1 . Largest Inventory Capacity 40 | 8 10 10 10 10 40 Average Capacity 11 | 7 8 10 10 10 40 Most Carried 14 | 7 10 10 10 10 14 Average Carried 9 | 4 8 9 9 9 10 Final Capacity 40 | 8 10 10 10 10 40 Final Carried 13 | 4 10 10 10 10 13 Class Distribution -------------------- 93% | Mutant 6% | Hauler-Mutant Dominant Class ---------------- Mutant | -10/Materials Mutant | -10/Mines Mutant | -10/Exiles Mutant | -9/Mines Hauler-Mutant | -8/Materials Resources | -11 -10 -10 -10 -9 -8 ----------- Run | Yrd Mat Min Exi Min Mat Matter Collected 711 | 213 165 98 . 160 75 Remotely . | . . . . . . Salvage Created 908 | . 452 43 . 205 208 Parts 49 | . 20 3 . 13 13 Haulers Intercepted . | . . . . . . Recyclers Shooed . | . . . . . . Parts Field Recycled . | . . . . . . Retrieved Matter . | . . . . . . Parts Self-Destructed . | . . . . . . Prevented . | . . . . . . Kills | -11 -10 -10 -10 -9 -8 ------- Run | Yrd Mat Min Exi Min Mat Combat Hostiles Destroyed 24 | . 9 2 . 6 7 Guns 5 | . 4 1 . . . Cannons 17 | . 4 1 . 6 6 AOE 2 | . 1 . . . 1 Classes Destroyed 6 | . 2 1 . . 3 Watcher 4 | . 3 . . . 1 Swarmer 3 | . . . . . 3 Grunt 18 | . 9 1 . 6 2 Duelist 1 | . . . . . 1 Hunter 1 | . . . . . 1 Assembled 1 | . . 1 . . . Best Kill Streak 8 | . 3 1 . 3 8 Combat Bots Only 7 | . 2 1 . 3 7 Max Kills in Single Turn 2 | . 1 1 . 1 2 Gunslinging . | . . . . . . Exploded 1 | . 1 . . . 1 Melee . | . . . . . . Uniques/NPCs Destroyed . | . . . . . . Combat | -11 -10 -10 -10 -9 -8 -------- Run | Yrd Mat Min Exi Min Mat Hostile Shots Fired 77 | . 17 15 . 17 28 Missed 17 | . 3 5 . 4 5 Hits 60 | . 14 10 . 13 23 Melee 3 | . . 2 . . 1 Projectile 57 | . 14 8 . 13 22 Critical Strikes 4 | . 1 1 . 1 1 Damage Taken 690 | . 175 159 . 123 233 Core 154 | . 47 35 . 18 54 Absorbed by Shields . | . . . . . . Redirected to Shielding 6 | . . 6 . . . Ignored by Resistances 206 | . 53 46 . 36 71 Core Remaining (%) 80 | 100 . . . 60 . Volleys Fired 64 | . 26 12 . 10 16 Largest 2 | . 2 2 . 2 2 Hottest 90 | . 90 70 . 60 66 Shots Fired 127 | . 52 24 . 20 31 Gun 51 | . 39 12 . . . Cannon 74 | . 13 12 . 20 29 Launcher 2 | . . . . . 2 Special . | . . . . . . Kinetic 75 | . 14 12 . 20 29 Thermal 12 | . 12 . . . . Explosive . | . . . . . . Electromagnetic 40 | . 26 12 . . 2 Robot Hit Streak 15 | . 15 5 . 7 12 Robot Miss Streak 3 | . 3 1 . 1 3 Penetration Max . | . . . . . . Secondary Targets 1 | . 1 . . . . Max Gunslinging Chain 1 | . 1 . . . . Shots Hit Robots 89 | . 39 16 . 13 21 Core Hits 45 | . 20 4 . 8 13 Critical Kills . | . . . . . . Critical Parts Destroyed . | . . . . . . Critical Strikes 1 | . 1 . . . . Burn 1 | . 1 . . . . Melee Attacks . | . . . . . . Impact . | . . . . . . Slashing . | . . . . . . Piercing . | . . . . . . Sneak Attacks . | . . . . . . Combat Hostiles . | . . . . . . Follow-up Attacks . | . . . . . . Damage Inflicted 1658 | . 688 345 . 239 386 Guns 497 | . 420 77 . . . Cannons 884 | . 174 170 . 239 301 Explosions 273 | . 90 98 . . 85 Melee . | . . . . . . Ramming 4 | . 4 . . . . Kinetic 884 | . 174 170 . 239 301 Thermal 312 | . 214 98 . . . Explosive . | . . . . . . Electromagnetic 458 | . 296 77 . . 85 Impact . | . . . . . . Slashing . | . . . . . . Piercing . | . . . . . . Highest Corruption 5 | . . . . . 5 Average Corruption 5 | . . . . . 5 Corruption Purged . | . . . . . . Corruption Blocked . | . . . . . . Effects 2 | . . . . . 2 Message Errors 1 | . . . . . 1 Heat Flow Errors 1 | . . . . . 1 Overload Shots . | . . . . . . Overflow Damage 35 | . 14 5 . . 16 Projectiles 7 | . . 5 . . 2 Explosions 28 | . 14 . . . 14 Melee . | . . . . . . Knockbacks 9 | . . 3 . 4 2 Impact . | . . . . . . Kinetic 9 | . . 3 . 4 2 Secondary . | . . . . . . Self-Inflicted Damage 60 | . 36 24 . . . Shots 3 | . 2 1 . . . Rammed . | . . . . . . Targets Rammed 2 | . 2 . . . . Kicked 2 | . 2 . . . . Crushed . | . . . . . . Highest Temperature 331 | . 331 69 . 66 138 Average Temperature 58 | . 89 26 . 30 27 Received Heat Transfer 384 | . 123 84 . 114 63 Siege Activations . | . . . . . . Martial Activations . | . . . . . . Shielding Activations . | . . . . . . Robots Disrupted . | . . . . . . Combat Hostiles . | . . . . . . Robots Corrupted . | . . . . . . Combat Hostiles . | . . . . . . Parts Fried 1 | . . . . . 1 Impact Corruptions . | . . . . . . Robots Melted . | . . . . . . Combat Hostiles . | . . . . . . Parts Melted . | . . . . . . Heat Transferred 644 | . 494 150 . . . Parts Sabotaged . | . . . . . . Parts Stolen . | . . . . . . Parts Stripped . | . . . . . . Power Chain Reactions 4 | . 2 1 . . 1 Alert | -11 -10 -10 -10 -9 -8 ------- Run | Yrd Mat Min Exi Min Mat Maximum Alert Level 1 | . . . . . 1 Low Security (%) 99 | 100 100 100 . 100 99 Level 1 . | . . . . . . Level 2 . | . . . . . . Level 3 . | . . . . . . Level 4 . | . . . . . . Level 5 . | . . . . . . High Security . | . . . . . . Max Security . | . . . . . . Peak Influence 206 | . 109 54 . 70 206 Initial . | . . . . . . Average 19 | . 37 11 . 9 32 Influence Increases 807 | . 313 105 . 155 234 Destroy 0b10 Robot/C 520 | . 180 80 . 120 140 Destroy 0b10 Robot/NC 20 | . 15 . . . 5 Destroy Leader 118 | . 46 20 . 20 32 Allied During Kill 2 | . . 2 . . . Successful Hack 45 | . 37 . . . 8 Disable Machine 18 | . 9 . . . 9 Destroy Structure 24 | . 11 3 . . 10 Lose Combat Pursuer 60 | . 15 . . 15 30 Influence Decreases 611 | . 313 105 . 155 38 Time Decay 601 | . 303 105 . 155 38 Lost Part 10 | . 10 . . . . Squads Dispatched 1 | . 1 . . . . Investigation 1 | . 1 . . . . Extermination . | . . . . . . Reinforcement . | . . . . . . Assault . | . . . . . . Garrison . | . . . . . . Intercept . | . . . . . . Searches Triggered . | . . . . . . Construction Impeded . | . . . . . . Haulers Reinforced . | . . . . . . Active Scanning Responses . | . . . . . . Cargo Convoy Interrupts . | . . . . . . Stealth | -11 -10 -10 -10 -9 -8 --------- Run | Yrd Mat Min Exi Min Mat Distress Signals 2 | . 1 . . . 1 Communications Jammed . | . . . . . . Distress Signals . | . . . . . . Times Spotted 38 | . 12 10 . 7 9 Peak Tracking Total 6 | . 4 6 . 3 3 Tactical Retreats 3 | . 1 . . 1 1 Traps | -11 -10 -10 -10 -9 -8 ------- Run | Yrd Mat Min Exi Min Mat Traps Triggered 1 | . 1 . . . . Indirectly . | . . . . . . Trap Hack Attempts . | . . . . . . Triggered . | . . . . . . Disarmed 12 | . 12 . . . . Reprogrammed . | . . . . . . Reused . | . . . . . . Traps Extracted . | . . . . . . Installed . | . . . . . . Triggered . | . . . . . . Machines | -11 -10 -10 -10 -9 -8 ---------- Run | Yrd Mat Min Exi Min Mat Machines Disabled 2 | . 1 . . . 1 Max in Single Turn 1 | . 1 . . . 1 Machines Repaired . | . . . . . . Machines Dismantled . | . . . . . . Machines Sabotaged . | . . . . . . Overloaded Fab Kills . | . . . . . . Hacking | -11 -10 -10 -10 -9 -8 --------- Run | Yrd Mat Min Exi Min Mat Machines Accessed 10 | . 8 . 1 . 1 Terminals 8 | . 7 . . . 1 Fabricators . | . . . . . . Repair Stations . | . . . . . . Recycling Units 1 | . 1 . . . . Scanalyzers . | . . . . . . Garrison Access . | . . . . . . Total Hacks 30 | . 26 . 1 . 3 Successful 21 | . 18 . 1 . 2 Failed 9 | . 8 . . . 1 Catastrophic . | . . . . . . Database Lockouts . | . . . . . . Manual 1 | . . . 1 . . Terminals 27 | . 24 . . . 3 Fabricators . | . . . . . . Repair Stations . | . . . . . . Recycling Units 2 | . 2 . . . . Scanalyzers . | . . . . . . Garrison Access . | . . . . . . Terminal Hacks 19 | . 16 . 1 . 2 Robot Analysis 1 | . 1 . . . . Prototype ID Bank 2 | . 1 . . . 1 Branch Access Points 1 | . 1 . . . . Emergency Access Points 2 | . 2 . . . . Machine Index 1 | . 1 . . . . Locate Traps 2 | . 2 . . . . Disarm Traps 2 | . 2 . . . . Patrol Status 1 | . 1 . . . . Transport Status 1 | . 1 . . . . Hauler Manifests 1 | . 1 . . . . Registered Components 1 | . 1 . . . . Zone Layout 3 | . 2 . . . 1 Proto ID Catalog 1 | . . . 1 . . Fabricator Hacks . | . . . . . . Repair Station Hacks . | . . . . . . Recycling Unit Hacks 2 | . 2 . . . . Report Inventory 1 | . 1 . . . . Retrieve Components 1 | . 1 . . . . Scanalyzer . | . . . . . . Garrison Access Hacks . | . . . . . . Unauthorized Hacks . | . . . . . . Terminals . | . . . . . . Fabricators . | . . . . . . Repair Stations . | . . . . . . Recycling Units . | . . . . . . Scanalyzers . | . . . . . . Garrison Access . | . . . . . . Data Cores Recovered . | . . . . . . Used . | . . . . . . Hacking Detections 8 | . 7 . . . 1 Full Trace Events . | . . . . . . Feedback Events . | . . . . . . Feedback Blocked . | . . . . . . Robot Schematics Acquired . | . . . . . . Robots Built . | . . . . . . Authchips . | . . . . . . Time . | . . . . . . Total Robot Build Rating . | . . . . . . Part Schematics Acquired . | . . . . . . Parts Built . | . . . . . . Authchips . | . . . . . . Time . | . . . . . . Total Part Build Rating . | . . . . . . Parts Repaired . | . . . . . . Time . | . . . . . . Parts Recycled . | . . . . . . Recycled Matter . | . . . . . . Retrieved Matter . | . . . . . . Retrieved Components 3 | . 3 . . . . Parts Scanalyzed . | . . . . . . Part Schematics Acquired . | . . . . . . Parts Damaged . | . . . . . . Bothacking | -11 -10 -10 -10 -9 -8 ------------ Run | Yrd Mat Min Exi Min Mat Used RIF Installer . | . . . . . . Robots Hacked . | . . . . . . Non-combat . | . . . . . . Combat . | . . . . . . Robot Hacks Applied . | . . . . . . Relay Couplers Released . | . . . . . . Fabnet Peak Effective % . | . . . . . . Robots Rewired . | . . . . . . Allies Hacked . | . . . . . . Hacks Repelled . | . . . . . . Allies | -11 -10 -10 -10 -9 -8 -------- Run | Yrd Mat Min Exi Min Mat Total Allies 1 | . . 1 . . . Largest Group 1 | . . 1 . . . Highest-Rated Group 31 | . . 31 . . . Highest-Rated Ally 31 | . . 31 . . . Total Orders . | . . . . . . Ally Attacks 9 | . . 9 . . . Total Damage 144 | . . 144 . . . Kills 3 | . . 3 . . . Allies Corrupted . | . . . . . . Allies Melted . | . . . . . . Intel | -11 -10 -10 -10 -9 -8 ------- Run | Yrd Mat Min Exi Min Mat Active Infowar (turns) 339 | . 279 59 . 1 . Sensors 280 | . 279 . . 1 . Terrain 59 | . . 59 . . . Robot Analysis Total 1 | . 1 . . . . Derelict Logs Recovered 2 | . . 1 . 1 . Drone Launches . | . . . . . . Drone Recoveries . | . . . . . . Exploration | -11 -10 -10 -10 -9 -8 ------------- Run | Yrd Mat Min Exi Min Mat Turns Passed 3967 | 62 785 506 1204 1142 268 Spaces Moved 2153 | 52 595 348 633 422 103 Core 11 | 11 . . . . . Treads . | . . . . . . Legs 1839 | . 333 348 633 422 103 Wheels 303 | 41 262 . . . . Hover . | . . . . . . Flight . | . . . . . . Fastest Speed 50 | 50 80 120 190 190 120 Average Speed 152 | 78 102 124 190 190 186 Slowest Speed 190 | 100 120 190 190 190 190 Overloaded Moves . | . . . . . . Propulsion Burnouts . | . . . . . . Robots Hopped . | . . . . . . Potential Cave-ins . | . . . . . . Cave-ins Triggered . | . . . . . . Exploration Rate (%) 56 | 3 87 56 91 93 8 Regions Visited 5 Branch Regions 3 Pre-discovered Areas 1 | . . . . 1 . Known Exits Taken 1 | . 1 . . . . Unknown Exits Taken 4 | 1 . 1 1 1 . Scrap Searched 2 | . . 1 . 1 . Spaces Dug . | . . . . . . Terrain Destroyed 21 | . 10 3 . . 8 Melee . | . . . . . . Projectile . | . . . . . . AOE 21 | . 10 3 . . 8 Terrain Rammed . | . . . . . . Walls Destroyed . | . . . . . . Machines Disabled . | . . . . . . Actions | -11 -10 -10 -10 -9 -8 --------- Run | Yrd Mat Min Exi Min Mat Total 2718 | 72 719 400 636 743 148 Wait 399 | 5 69 18 . 298 9 Move 2148 | 51 594 347 632 421 103 Hop . | . . . . . . Pick Up 45 | 10 14 7 1 3 10 Fast Attach 2 | . 1 1 . . . Attach 10 | 6 1 . . . 3 Detach 2 | . . . . . 2 Swap 20 | . 5 6 . 6 3 Drop 26 | . 7 9 3 5 2 Fire 64 | . 26 12 . 10 16 Melee . | . . . . . . Ram . | . . . . . . Kick 2 | . 2 . . . . Crush . | . . . . . . Escape Stasis . | . . . . . . Rewire . | . . . . . . Trap . | . . . . . . Miscellaneous . | . . . . . . Route ------- -11/Scrapyard -10/Materials (discovered 4 exits: [*Mat x3] / *Min) -10/Mines -10/Exiles (discovered 2 exits: [*Min x2]) -9/Mines -8/Materials History --------- Turn | Location | Event 14 | -11/Scrapyard | Discovered new exit (range 15) 63 | -11/Scrapyard | Entered Materials 190 | -10/Materials | Discovered new exit (range 14) 312 | -10/Materials | Build established: Mutant 339 | -10/Materials | Discovered new exit (range 16) 456 | -10/Materials | Identified exit to Mines 534 | -10/Materials | Discovered new exit (range 13) 683 | -10/Materials | Discovered new exit (range 7) 848 | -10/Materials | Entered Mines 889 | -10/Mines | Received a Mining Laser from a helpful Derelict 948 | -10/Mines | Learned Materials non-interactive machine intel 997 | -10/Mines | Assembled infested the area 1002 | -10/Mines | Assisted by a Guerilla fighting off Assembled 1346 | -10/Mines | Deemed a non-threat by the Exiles lab entrance 1346 | -10/Mines | Discovered new exit (range 5) 1354 | -10/Mines | Entered Exiles 1383 | -10/Exiles | Discovered new exit (range 15) 1438 | -10/Exiles | Met 8R-AWN 1465 | -10/Exiles | Met EX-HEX 1544 | -10/Exiles | Met EX-DEC 1667 | -10/Exiles | Visited The Gauntlet 1961 | -10/Exiles | Discovered new exit (range 14) 2073 | -10/Exiles | Met EX-BIN 2099 | -10/Exiles | Aligned with FarCom system 2101 | -10/Exiles | Given EX-Vault access code 2164 | -10/Exiles | Opened EX-Vault 2179 | -10/Exiles | Found Lightpack 2.0 2218 | -10/Exiles | Warned to stay clear of 0b10 Research branches 2558 | -10/Exiles | Left Exiles lab with Lightpack 2.0 2558 | -10/Exiles | Entered Mines 2892 | -9/Mines | Found a damaged Exp. Sensor Array with a note attached 2898 | -9/Mines | Found Prototype Device 2899 | -9/Mines | Identified Exp. Sensor Array 3613 | -9/Mines | Learned Materials trap positions 3684 | -9/Mines | Learned location of Storage (-7) 3690 | -9/Mines | Discovered new exit (range 6) 3700 | -9/Mines | Entered Materials 3700 | -8/Materials | Evolved 4 slots: Propulsion x1, Utility x3 3701 | -8/Materials | Loaded intel: 11 trap records 3702 | -8/Materials | Loaded intel: 45 non-interactive machine locations 3968 | -8/Materials | Self-destructed Last Messages --------------- 03931_ Terminal disabled. 03933_ Slug penetrates Terminal. 03934_ H-55 Commando destroyed. 03940_ G-47 Trooper destroyed. 03946_ Acquired Aluminum Leg. 03947_ OQZMN7CGLSO6KH